[Event "Live Chess"]
[Site "Chess.com"]
[Date "2023.05.21"]
[Round "-"]
[White "educatedlad"]
[Black "Outspanner"]
[Result "0-1"]
[WhiteElo "1619"]
[BlackElo "1589"]
[TimeControl "300"]
[EndTime "16:01:14 PDT"]
[Termination "Outspanner won by checkmate"]

1. e4 {[%clk 0:04:59.5]} 1... d6 {[%clk 0:04:53.6]} 2. d4 {[%clk 0:04:57.8]}
2... Nf6 {[%clk 0:04:52.6]} 3. Nc3 {[%clk 0:04:57.2]} 3... Nbd7 {[%clk
0:04:51.8]} 4. f4 {[%clk 0:04:56]} 4... e5 {[%clk 0:04:50.2]} 5. Nf3 {[%clk
0:04:54.2]} 5... exd4 {[%clk 0:04:48.2]} 6. Qxd4 {[%clk 0:04:51.6]} 6... c6
{[%clk 0:04:46.6]} 7. Bd2 {[%clk 0:04:47.8]} 7... d5 {[%clk 0:04:45.7]} 8. exd5
{[%clk 0:04:42.7]} 8... Bc5 {[%clk 0:04:45.1]} 9. Qd3 {[%clk 0:04:34.5]} 9...
O-O {[%clk 0:04:42.5]} 10. Na4 {[%clk 0:04:29.1]} 10... Re8+ {[%clk 0:04:38.5]}
11. Be2 {[%clk 0:04:27.4]} 11... Nxd5 {[%clk 0:04:10.5]} 12. Nxc5 {[%clk
0:04:25.3]} 12... Nxc5 {[%clk 0:04:09.4]} 13. Qa3 {[%clk 0:04:21.4]} 13... Qe7
{[%clk 0:03:58]} 14. O-O-O {[%clk 0:04:16.4]} 14... Bg4 {[%clk 0:03:15.2]} 15.
Bb4 {[%clk 0:04:03.7]} 15... Nxb4 {[%clk 0:03:10.5]} 16. Rhe1 {[%clk 0:03:50.4]}
16... a5 {[%clk 0:02:54.7]} 17. c3 {[%clk 0:03:43.2]} 17... Nd5 {[%clk
0:02:48.9]} 18. Ne5 {[%clk 0:03:35]} 18... Bxe2 {[%clk 0:02:42]} 19. Rxe2 {[%clk
0:03:33]} 19... Qf8 {[%clk 0:02:14.5]} 20. Rde1 {[%clk 0:03:19.4]} 20... Nxf4
{[%clk 0:02:07.6]} 21. Re3 {[%clk 0:03:13.2]} 21... Rxe5 {[%clk 0:01:58.5]} 22.
Rxe5 {[%clk 0:03:10.5]} 22... Ncd3+ {[%clk 0:01:53.6]} 23. Kc2 {[%clk
0:02:55.7]} 23... Qxa3 {[%clk 0:01:52.8]} 24. bxa3 {[%clk 0:02:49.5]} 24...
Nxe1+ {[%clk 0:01:49.4]} 25. Rxe1 {[%clk 0:02:47.7]} 25... Nxg2 {[%clk
0:01:45.3]} 26. Re7 {[%clk 0:02:39]} 26... Rb8 {[%clk 0:01:40.9]} 27. Kb3 {[%clk
0:02:36.8]} 27... Kf8 {[%clk 0:01:39.6]} 28. Rd7 {[%clk 0:02:34.8]} 28... Ke8
{[%clk 0:01:37.8]} 29. Rc7 {[%clk 0:02:33]} 29... f5 {[%clk 0:01:36.6]} 30. Rxg7
{[%clk 0:02:31.6]} 30... Kf8 {[%clk 0:01:20.9]} 31. Rxg2 {[%clk 0:02:29.9]}
31... Kf7 {[%clk 0:01:20.6]} 32. Kc4 {[%clk 0:02:27.1]} 32... b6 {[%clk
0:01:13.7]} 33. Kd4 {[%clk 0:02:23.5]} 33... Re8 {[%clk 0:01:13.1]} 34. Rf2
{[%clk 0:02:20.6]} 34... Kf6 {[%clk 0:01:11.9]} 35. c4 {[%clk 0:02:17.5]} 35...
Re4+ {[%clk 0:01:09.8]} 36. Kd3 {[%clk 0:02:15.8]} 36... Ke5 {[%clk 0:01:07.8]}
37. h4 {[%clk 0:02:13.7]} 37... Rxh4 {[%clk 0:01:03.8]} 38. a4 {[%clk
0:02:11.3]} 38... f4 {[%clk 0:01:01.4]} 39. Re2+ {[%clk 0:02:08.7]} 39... Kf5
{[%clk 0:01:01]} 40. Rf2 {[%clk 0:02:04.5]} 40... Rh3+ {[%clk 0:00:59.5]} 41.
Kd4 {[%clk 0:02:03.4]} 41... Kg4 {[%clk 0:00:56.4]} 42. c5 {[%clk 0:02:00.4]}
42... bxc5+ {[%clk 0:00:51]} 43. Kxc5 {[%clk 0:01:59.4]} 43... f3 {[%clk
0:00:49.7]} 44. Kxc6 {[%clk 0:01:58.2]} 44... Kg3 {[%clk 0:00:48]} 45. Rc2
{[%clk 0:01:55.3]} 45... f2 {[%clk 0:00:45.3]} 46. Rc3+ {[%clk 0:01:51.9]} 46...
Kg2 {[%clk 0:00:44.9]} 47. Rc2 {[%clk 0:01:51.4]} 47... Kg1 {[%clk 0:00:42.4]}
48. Rc1+ {[%clk 0:01:42.8]} 48... f1=Q {[%clk 0:00:40.5]} 49. Rxf1+ {[%clk
0:01:41.9]} 49... Kxf1 {[%clk 0:00:40.4]} 50. Kb5 {[%clk 0:01:40.7]} 50... Rh5+
{[%clk 0:00:38.6]} 51. Ka6 {[%clk 0:01:39.9]} 51... Rd5 {[%clk 0:00:36.3]} 52.
Kb6 {[%clk 0:01:39]} 52... h5 {[%clk 0:00:35.7]} 53. Kc6 {[%clk 0:01:37.7]}
53... Rg5 {[%clk 0:00:33.6]} 54. Kb6 {[%clk 0:01:37.1]} 54... h4 {[%clk
0:00:33]} 55. Ka6 {[%clk 0:01:36.4]} 55... h3 {[%clk 0:00:32.7]} 56. Kb6 {[%clk
0:01:36]} 56... h2 {[%clk 0:00:32.4]} 57. Kc6 {[%clk 0:01:35.6]} 57... h1=Q+
{[%clk 0:00:31.4]} 58. Kb6 {[%clk 0:01:34.3]} 58... Qh6+ {[%clk 0:00:30.5]} 59.
Kc7 {[%clk 0:01:32.5]} 59... Rg7+ {[%clk 0:00:30.4]} 60. Kd8 {[%clk 0:01:31.6]}
60... Qh8# {[%clk 0:00:30.3]} 0-1

[Event "Live Chess"]
[Site "Chess.com"]
[Date "2023.05.21"]
[Round "-"]
[White "Hussamalhaidar"]
[Black "nigelst"]
[Result "0-1"]
[WhiteElo "1039"]
[BlackElo "1804"]
[TimeControl "300"]
[EndTime "16:01:39 PDT"]
[Termination "nigelst won by checkmate"]

1. b3 {[%clk 0:04:54.8]} 1... e5 {[%clk 0:04:57.6]} 2. Bb2 {[%clk 0:04:53]} 2...
Nc6 {[%clk 0:04:55.1]} 3. e3 {[%clk 0:04:51.2]} 3... d5 {[%clk 0:04:54.2]} 4.
Bb5 {[%clk 0:04:50]} 4... Bd6 {[%clk 0:04:53.1]} 5. Nf3 {[%clk 0:04:47.1]} 5...
Bg4 {[%clk 0:04:50.1]} 6. h3 {[%clk 0:04:41.3]} 6... Bxf3 {[%clk 0:04:42]} 7.
Qxf3 {[%clk 0:04:38.9]} 7... Nf6 {[%clk 0:04:40.5]} 8. Bxc6+ {[%clk 0:04:30.7]}
8... bxc6 {[%clk 0:04:38.3]} 9. d4 {[%clk 0:04:22.2]} 9... e4 {[%clk 0:04:35.5]}
10. Qe2 {[%clk 0:04:15.8]} 10... O-O {[%clk 0:04:33.9]} 11. Nd2 {[%clk
0:04:09.8]} 11... Rb8 {[%clk 0:04:28.4]} 12. f4 {[%clk 0:04:04.9]} 12... exf3
{[%clk 0:04:26.4]} 13. Nxf3 {[%clk 0:04:01]} 13... Re8 {[%clk 0:04:25.4]} 14.
O-O-O {[%clk 0:03:58.7]} 14... Bf4 {[%clk 0:04:23.2]} 15. Kb1 {[%clk 0:03:24.5]}
15... Rxe3 {[%clk 0:04:18]} 16. Qf2 {[%clk 0:03:13.2]} 16... Ne4 {[%clk
0:04:12.3]} 17. Qxe3 {[%clk 0:02:56.3]} 17... Bxe3 {[%clk 0:04:10.5]} 18. Ne5
{[%clk 0:02:51.5]} 18... Qd6 {[%clk 0:04:02.4]} 19. Rhf1 {[%clk 0:02:47.2]}
19... f6 {[%clk 0:04:00.2]} 20. Ng4 {[%clk 0:02:39.4]} 20... Nd2+ {[%clk
0:03:57.6]} 21. Rxd2 {[%clk 0:02:33.3]} 21... Bxd2 {[%clk 0:03:56.4]} 22. Ka1
{[%clk 0:02:28.8]} 22... h5 {[%clk 0:03:53.9]} 23. Nf2 {[%clk 0:02:22.5]} 23...
Re8 {[%clk 0:03:51.9]} 24. Nd3 {[%clk 0:02:19.6]} 24... Qg3 {[%clk 0:03:34.5]}
25. Nc5 {[%clk 0:01:50]} 25... Re1+ {[%clk 0:03:28.2]} 26. Rxe1 {[%clk
0:01:40.7]} 26... Qxe1+ {[%clk 0:03:25.9]} 27. Bc1 {[%clk 0:01:35.9]} 27...
Qxc1# {[%clk 0:03:24.7]} 0-1

[Event "Live Chess"]
[Site "Chess.com"]
[Date "2023.05.21"]
[Round "-"]
[White "hturner40"]
[Black "JoeyCage"]
[Result "0-1"]
[WhiteElo "1791"]
[BlackElo "2321"]
[TimeControl "300"]
[EndTime "16:01:59 PDT"]
[Termination "JoeyCage won on time"]

1. Nf3 {[%clk 0:04:55.5]} 1... c5 {[%clk 0:04:57.9]} 2. g3 {[%clk 0:04:54.4]}
2... Nc6 {[%clk 0:04:57.1]} 3. Bg2 {[%clk 0:04:53.4]} 3... g6 {[%clk 0:04:56.4]}
4. O-O {[%clk 0:04:51.9]} 4... Bg7 {[%clk 0:04:55.7]} 5. c3 {[%clk 0:04:50.1]}
5... e5 {[%clk 0:04:54.9]} 6. e4 {[%clk 0:04:46.7]} 6... Nge7 {[%clk 0:04:53.8]}
7. d3 {[%clk 0:04:37.2]} 7... O-O {[%clk 0:04:52.4]} 8. a4 {[%clk 0:04:30.9]}
8... h6 {[%clk 0:04:50.4]} 9. Na3 {[%clk 0:04:28.6]} 9... d6 {[%clk 0:04:48.9]}
10. Nc4 {[%clk 0:04:27.5]} 10... Rb8 {[%clk 0:04:46.9]} 11. Be3 {[%clk
0:04:16.7]} 11... b6 {[%clk 0:04:45.5]} 12. Qd2 {[%clk 0:04:15.4]} 12... Kh7
{[%clk 0:04:44.1]} 13. h4 {[%clk 0:04:03.9]} 13... a6 {[%clk 0:04:42.2]} 14. d4
{[%clk 0:03:35.6]} 14... b5 {[%clk 0:04:38.2]} 15. axb5 {[%clk 0:03:28.4]} 15...
axb5 {[%clk 0:04:36.7]} 16. d5 {[%clk 0:03:07]} 16... bxc4 {[%clk 0:04:35]} 17.
dxc6 {[%clk 0:03:05.5]} 17... Nxc6 {[%clk 0:04:33.8]} 18. Rfd1 {[%clk
0:03:00.9]} 18... Qb6 {[%clk 0:03:29.7]} 19. Qxd6 {[%clk 0:02:47.8]} 19... Rd8
{[%clk 0:03:27.5]} 20. Qxc5 {[%clk 0:02:42.3]} 20... Qxc5 {[%clk 0:03:25.5]} 21.
Bxc5 {[%clk 0:02:40.5]} 21... Rxd1+ {[%clk 0:03:24]} 22. Rxd1 {[%clk 0:02:37.2]}
22... Rxb2 {[%clk 0:03:22.8]} 23. Rd6 {[%clk 0:02:32.5]} 23... Na5 {[%clk
0:03:16.8]} 24. Rd8 {[%clk 0:02:21.3]} 24... Be6 {[%clk 0:03:15]} 25. Bb4 {[%clk
0:02:11.7]} 25... Nc6 {[%clk 0:03:11.7]} 26. Rd2 {[%clk 0:01:21.1]} 26... Rb1+
{[%clk 0:03:06]} 27. Kh2 {[%clk 0:01:19.8]} 27... Nxb4 {[%clk 0:03:04.8]} 28.
cxb4 {[%clk 0:01:18.2]} 28... Rxb4 {[%clk 0:03:03.8]} 29. Bf1 {[%clk 0:01:06.6]}
29... Rb5 {[%clk 0:03:01.4]} 30. Rc2 {[%clk 0:00:59.7]} 30... Rc5 {[%clk
0:03:00.5]} 31. Rc3 {[%clk 0:00:52.4]} 31... f5 {[%clk 0:02:52.2]} 32. Nd2
{[%clk 0:00:46.3]} 32... fxe4 {[%clk 0:02:43.3]} 33. Nxe4 {[%clk 0:00:43.3]}
33... Rc8 {[%clk 0:02:40.1]} 34. Nd6 {[%clk 0:00:39.9]} 34... Rc6 {[%clk
0:02:38.7]} 35. Nxc4 {[%clk 0:00:27.2]} 35... e4 {[%clk 0:02:37]} 36. Rc2 {[%clk
0:00:23.3]} 36... Bd4 {[%clk 0:02:32.2]} 37. Ne3 {[%clk 0:00:18.9]} 37... Rxc2
{[%clk 0:02:29.4]} 38. Nxc2 {[%clk 0:00:17.3]} 38... Bxf2 {[%clk 0:02:28.7]} 39.
Kg2 {[%clk 0:00:11.8]} 39... Bc5 {[%clk 0:02:27.4]} 0-1

[Event "Live Chess"]
[Site "Chess.com"]
[Date "2023.05.21"]
[Round "-"]
[White "LL220284LL"]
[Black "AbilifyXL"]
[Result "1-0"]
[WhiteElo "2389"]
[BlackElo "1965"]
[TimeControl "300"]
[EndTime "16:02:10 PDT"]
[Termination "LL220284LL won by resignation"]

1. Nf3 {[%clk 0:04:59.2]} 1... Nf6 {[%clk 0:04:58.8]} 2. c4 {[%clk 0:04:57.6]}
2... c6 {[%clk 0:04:57.9]} 3. e3 {[%clk 0:04:56.5]} 3... d5 {[%clk 0:04:57.2]}
4. b3 {[%clk 0:04:54.8]} 4... Bg4 {[%clk 0:04:52]} 5. Be2 {[%clk 0:04:52.8]}
5... e6 {[%clk 0:04:50.8]} 6. Bb2 {[%clk 0:04:51.8]} 6... Nbd7 {[%clk 0:04:49]}
7. O-O {[%clk 0:04:51.3]} 7... Be7 {[%clk 0:04:47.9]} 8. Nc3 {[%clk 0:04:50.4]}
8... O-O {[%clk 0:04:46.8]} 9. d4 {[%clk 0:04:49.4]} 9... h6 {[%clk 0:04:44]}
10. h3 {[%clk 0:04:46.3]} 10... Bh5 {[%clk 0:04:42.7]} 11. Re1 {[%clk
0:04:45.2]} 11... Rc8 {[%clk 0:04:40.4]} 12. Rc1 {[%clk 0:04:43.5]} 12... b6
{[%clk 0:04:38.8]} 13. Ne5 {[%clk 0:04:38.9]} 13... Bxe2 {[%clk 0:04:37.1]} 14.
Qxe2 {[%clk 0:04:38.8]} 14... c5 {[%clk 0:04:36.1]} 15. cxd5 {[%clk 0:04:36.9]}
15... exd5 {[%clk 0:04:34.8]} 16. Nxd7 {[%clk 0:04:33.3]} 16... Qxd7 {[%clk
0:04:33.1]} 17. Red1 {[%clk 0:04:32.9]} 17... Rfd8 {[%clk 0:04:31.9]} 18. Qf3
{[%clk 0:04:25.7]} 18... Qe6 {[%clk 0:04:30.5]} 19. Ne2 {[%clk 0:04:23.2]} 19...
Ne4 {[%clk 0:04:21.3]} 20. dxc5 {[%clk 0:04:19.7]} 20... bxc5 {[%clk 0:04:20]}
21. Nf4 {[%clk 0:04:18.7]} 21... Qc6 {[%clk 0:04:15.9]} 22. Nh5 {[%clk
0:03:44.2]} 22... Bf6 {[%clk 0:04:00.8]} 23. Nxf6+ {[%clk 0:03:41]} 23... Nxf6
{[%clk 0:03:59.8]} 24. Bxf6 {[%clk 0:03:39.4]} 24... Qxf6 {[%clk 0:03:58.7]} 25.
Qxf6 {[%clk 0:03:38.6]} 25... gxf6 {[%clk 0:03:57.7]} 26. Kf1 {[%clk 0:03:38.2]}
26... Kf8 {[%clk 0:03:56.5]} 27. Ke2 {[%clk 0:03:37]} 27... Ke7 {[%clk
0:03:56.4]} 28. Kf3 {[%clk 0:03:36.1]} 28... Ke6 {[%clk 0:03:55.4]} 29. Rc2
{[%clk 0:03:32.9]} 29... Ke5 {[%clk 0:03:49.4]} 30. Rdc1 {[%clk 0:03:31.1]}
30... Kd6 {[%clk 0:03:45.1]} 31. Kf4 {[%clk 0:03:30.2]} 31... Re8 {[%clk
0:03:42.5]} 32. f3 {[%clk 0:03:27.4]} 32... Re5 {[%clk 0:03:34.3]} 33. Rd2
{[%clk 0:03:22.3]} 33... Ke6 {[%clk 0:03:26.6]} 34. g4 {[%clk 0:03:20.5]} 34...
h5 {[%clk 0:03:22.5]} 35. Rdc2 {[%clk 0:03:17.2]} 35... Kd6 {[%clk 0:03:18.6]}
36. Rg1 {[%clk 0:02:58.9]} 36... Rce8 {[%clk 0:03:07.5]} 37. Rgc1 {[%clk
0:02:55.9]} 37... Rc8 {[%clk 0:03:06.2]} 38. e4 {[%clk 0:02:52.6]} 38... d4
{[%clk 0:02:57]} 39. b4 {[%clk 0:02:49.7]} 39... d3 {[%clk 0:02:52.3]} 40. bxc5+
{[%clk 0:02:48.5]} 40... Rcxc5 {[%clk 0:02:48.1]} 41. Rxc5 {[%clk 0:02:47.6]}
41... Rxc5 {[%clk 0:02:47.1]} 42. Rd1 {[%clk 0:02:47.2]} 42... Rc3 {[%clk
0:02:44.5]} 43. gxh5 {[%clk 0:02:45.1]} 43... Ke6 {[%clk 0:02:39.5]} 44. h6
{[%clk 0:02:43.6]} 44... Rc8 {[%clk 0:02:34]} 45. Rxd3 {[%clk 0:02:42.5]} 45...
Rh8 {[%clk 0:02:32.8]} 46. Ra3 {[%clk 0:02:42]} 46... Rxh6 {[%clk 0:02:31.3]}
47. Kg3 {[%clk 0:02:41.2]} 47... Rg6+ {[%clk 0:02:28.4]} 48. Kf2 {[%clk
0:02:39.1]} 48... Rh6 {[%clk 0:02:27.3]} 49. Ra6+ {[%clk 0:02:37.7]} 49... Ke5
{[%clk 0:02:26]} 50. Ke3 {[%clk 0:02:36.5]} 50... Rxh3 {[%clk 0:02:17.9]} 51.
Rxa7 {[%clk 0:02:35.3]} 51... f5 {[%clk 0:02:14.7]} 52. Ra5+ {[%clk 0:02:34.4]}
52... Ke6 {[%clk 0:02:13.3]} 53. Rxf5 {[%clk 0:02:34.3]} 53... Rh2 {[%clk
0:02:12.4]} 54. Ra5 {[%clk 0:02:33.2]} 54... Rc2 {[%clk 0:02:10.1]} 55. a4
{[%clk 0:02:31.8]} 55... Rc3+ {[%clk 0:02:09]} 56. Kf4 {[%clk 0:02:31.2]} 56...
Ra3 {[%clk 0:02:08.3]} 57. Ra6+ {[%clk 0:02:30.4]} 57... Ke7 {[%clk 0:02:07.1]}
58. a5 {[%clk 0:02:30.1]} 58... f6 {[%clk 0:02:05.3]} 59. Kg4 {[%clk 0:02:29.6]}
59... Kf7 {[%clk 0:02:04.1]} 60. f4 {[%clk 0:02:28.8]} 60... Ra4 {[%clk
0:02:03.4]} 61. Kf5 {[%clk 0:02:28.1]} 61... Rb4 {[%clk 0:02:01.9]} 62. Rxf6+
{[%clk 0:02:27.3]} 62... Ke7 {[%clk 0:02:00.7]} 63. Rb6 {[%clk 0:02:27.2]} 63...
Ra4 {[%clk 0:01:58.8]} 64. Rb5 {[%clk 0:02:26.3]} 1-0

[Event "Live Chess"]
[Site "Chess.com"]
[Date "2023.05.21"]
[Round "-"]
[White "GEMdzq"]
[Black "Conradical12"]
[Result "1-0"]
[WhiteElo "2218"]
[BlackElo "1604"]
[TimeControl "300"]
[EndTime "16:02:15 PDT"]
[Termination "GEMdzq won by resignation"]

1. e4 {[%clk 0:04:57.6]} 1... e5 {[%clk 0:04:59.5]} 2. d4 {[%clk 0:04:56]} 2...
Nc6 {[%clk 0:04:59.1]} 3. Bc4 {[%clk 0:04:53.8]} 3... exd4 {[%clk 0:04:57.5]} 4.
c3 {[%clk 0:04:52.4]} 4... dxc3 {[%clk 0:04:55.8]} 5. Nf3 {[%clk 0:04:50.7]}
5... cxb2 {[%clk 0:04:54.5]} 6. Bxb2 {[%clk 0:04:49.3]} 6... Nf6 {[%clk
0:04:53.7]} 7. e5 {[%clk 0:04:38.1]} 7... Bb4+ {[%clk 0:04:52.8]} 8. Nbd2 {[%clk
0:04:36.4]} 8... Qe7 {[%clk 0:04:51.5]} 9. O-O {[%clk 0:04:35]} 9... Ng4 {[%clk
0:04:49.4]} 10. h3 {[%clk 0:04:28.6]} 10... h5 {[%clk 0:04:47.7]} 11. Ne4 {[%clk
0:04:18.9]} 1-0

[Event "Live Chess"]
[Site "Chess.com"]
[Date "2023.05.21"]
[Round "-"]
[White "wadsy27"]
[Black "EdenHazard8"]
[Result "1-0"]
[WhiteElo "2565"]
[BlackElo "2049"]
[TimeControl "300"]
[EndTime "16:02:19 PDT"]
[Termination "wadsy27 won by resignation"]

1. c4 {[%clk 0:04:57.1]} 1... Nf6 {[%clk 0:04:47.5]} 2. g3 {[%clk 0:04:55.5]}
2... c5 {[%clk 0:04:46.1]} 3. Bg2 {[%clk 0:04:54.7]} 3... Nc6 {[%clk 0:04:44.8]}
4. Nf3 {[%clk 0:04:53.7]} 4... g6 {[%clk 0:04:43.5]} 5. Nc3 {[%clk 0:04:52.2]}
5... Bg7 {[%clk 0:04:42.4]} 6. d4 {[%clk 0:04:51.8]} 6... cxd4 {[%clk
0:04:41.2]} 7. Nxd4 {[%clk 0:04:51.7]} 7... O-O {[%clk 0:04:40.1]} 8. O-O {[%clk
0:04:50.7]} 8... Ng4 {[%clk 0:04:29.8]} 9. e3 {[%clk 0:04:48.8]} 9... e5 {[%clk
0:04:22.6]} 10. Ndb5 {[%clk 0:04:42.1]} 10... f5 {[%clk 0:04:14.9]} 11. Nd6
{[%clk 0:04:36]} 11... Nf6 {[%clk 0:04:12.1]} 12. Nd5 {[%clk 0:04:33.4]} 12...
Ne7 {[%clk 0:04:03.4]} 13. b3 {[%clk 0:04:25.7]} 13... h6 {[%clk 0:03:51.4]} 14.
Ba3 {[%clk 0:04:22.3]} 14... Nexd5 {[%clk 0:03:47.8]} 15. Bxd5+ {[%clk
0:04:21.1]} 15... Nxd5 {[%clk 0:03:46.2]} 16. Qxd5+ {[%clk 0:04:19.4]} 16... Kh7
{[%clk 0:03:44.6]} 17. Nxc8 {[%clk 0:04:18.3]} 17... Rxc8 {[%clk 0:03:42.2]} 18.
Bxf8 {[%clk 0:04:17.9]} 18... Qxf8 {[%clk 0:03:41.5]} 19. Rad1 {[%clk
0:04:15.9]} 19... Rc7 {[%clk 0:03:40]} 20. Qd6 {[%clk 0:04:14.3]} 20... Qxd6
{[%clk 0:03:37.1]} 21. Rxd6 {[%clk 0:04:12.3]} 21... Bf8 {[%clk 0:03:35.6]} 22.
Rd5 {[%clk 0:04:10]} 22... d6 {[%clk 0:03:34.1]} 23. e4 {[%clk 0:04:08]} 23...
fxe4 {[%clk 0:03:30.9]} 24. Re1 {[%clk 0:04:07.4]} 24... Rf7 {[%clk 0:03:28.1]}
25. Rxe4 {[%clk 0:04:05.3]} 25... g5 {[%clk 0:03:24.8]} 26. Kg2 {[%clk 0:04:04]}
26... Kg6 {[%clk 0:03:23.5]} 27. h4 {[%clk 0:04:03.3]} 27... Kf5 {[%clk
0:03:22.2]} 28. f3 {[%clk 0:04:02.5]} 1-0

[Event "Live Chess"]
[Site "Chess.com"]
[Date "2023.05.21"]
[Round "-"]
[White "Duke_of_Bebington"]
[Black "domrobson"]
[Result "1/2-1/2"]
[WhiteElo "1584"]
[BlackElo "1772"]
[TimeControl "300"]
[EndTime "16:02:23 PDT"]
[Termination "Game drawn by repetition"]

1. e4 {[%clk 0:04:57.9]} 1... e5 {[%clk 0:04:59.4]} 2. Nf3 {[%clk 0:04:56.9]}
2... Nc6 {[%clk 0:04:58.3]} 3. Bc4 {[%clk 0:04:56.2]} 3... Nf6 {[%clk 0:04:57]}
4. d3 {[%clk 0:04:51.6]} 4... Bc5 {[%clk 0:04:55.9]} 5. O-O {[%clk 0:04:50.4]}
5... a6 {[%clk 0:04:55.2]} 6. Be3 {[%clk 0:04:49.1]} 6... Ba7 {[%clk 0:04:52.8]}
7. Bxa7 {[%clk 0:04:47.1]} 7... Nxa7 {[%clk 0:04:51.8]} 8. Nc3 {[%clk
0:04:44.9]} 8... d6 {[%clk 0:04:50.8]} 9. Re1 {[%clk 0:04:37.4]} 9... Bg4 {[%clk
0:04:46.9]} 10. h3 {[%clk 0:04:34.1]} 10... Bh5 {[%clk 0:04:45.8]} 11. g4 {[%clk
0:04:32.3]} 11... Nxg4 {[%clk 0:04:44.8]} 12. hxg4 {[%clk 0:04:31.1]} 12... Bxg4
{[%clk 0:04:42.7]} 13. Re3 {[%clk 0:04:29.4]} 13... Nc6 {[%clk 0:04:36.3]} 14.
Qf1 {[%clk 0:04:21.3]} 14... Bxf3 {[%clk 0:04:26]} 15. Rxf3 {[%clk 0:04:17.9]}
15... Nd4 {[%clk 0:04:25.5]} 16. Rxf7 {[%clk 0:04:05.5]} 16... Rf8 {[%clk
0:04:16.7]} 17. Rxf8+ {[%clk 0:04:02.9]} 17... Kxf8 {[%clk 0:04:15.6]} 18. Qh3
{[%clk 0:03:50.7]} 18... Qg5+ {[%clk 0:04:11.4]} 19. Qg2 {[%clk 0:03:43.3]}
19... Nf3+ {[%clk 0:04:07.6]} 20. Kf1 {[%clk 0:03:36.3]} 20... Nd2+ {[%clk
0:04:01.3]} 21. Kg1 {[%clk 0:03:35.2]} 21... Nf3+ {[%clk 0:04:00.3]} 22. Kf1
{[%clk 0:03:34.4]} 22... Nd2+ {[%clk 0:03:56.8]} 23. Kg1 {[%clk 0:03:29.7]}
23... Nf3+ {[%clk 0:03:55.7]} 1/2-1/2

[Event "Live Chess"]
[Site "Chess.com"]
[Date "2023.05.21"]
[Round "-"]
[White "sanjesh_ananda"]
[Black "Singapourfeuj"]
[Result "0-1"]
[WhiteElo "1081"]
[BlackElo "2189"]
[TimeControl "300"]
[EndTime "16:02:26 PDT"]
[Termination "Singapourfeuj won by checkmate"]

1. e4 {[%clk 0:04:48.5]} 1... e6 {[%clk 0:04:59.1]} 2. d4 {[%clk 0:04:46.3]}
2... d5 {[%clk 0:04:58]} 3. e5 {[%clk 0:04:45.4]} 3... c5 {[%clk 0:04:53]} 4.
Nf3 {[%clk 0:04:43.7]} 4... Nc6 {[%clk 0:04:52]} 5. c4 {[%clk 0:04:29.8]} 5...
cxd4 {[%clk 0:04:50.9]} 6. Nxd4 {[%clk 0:04:23.9]} 6... dxc4 {[%clk 0:04:48.7]}
7. Nxc6 {[%clk 0:04:11.7]} 7... Qxd1+ {[%clk 0:04:46.2]} 8. Kxd1 {[%clk
0:04:10.5]} 8... bxc6 {[%clk 0:04:45.1]} 9. Bxc4 {[%clk 0:04:08.6]} 9... Ne7
{[%clk 0:04:43.8]} 10. Nc3 {[%clk 0:03:57.5]} 10... Nd5 {[%clk 0:04:42.4]} 11.
f4 {[%clk 0:03:36.7]} 11... Be7 {[%clk 0:04:40.7]} 12. h4 {[%clk 0:03:20.9]}
12... h5 {[%clk 0:04:39.4]} 13. Ne4 {[%clk 0:03:11.4]} 13... f5 {[%clk
0:04:30.3]} 14. exf6 {[%clk 0:03:07]} 14... gxf6 {[%clk 0:04:29.2]} 15. Rg1
{[%clk 0:02:56.9]} 15... Rg8 {[%clk 0:04:22]} 16. a4 {[%clk 0:02:17.1]} 16... a5
{[%clk 0:04:18.1]} 17. b3 {[%clk 0:02:09.3]} 17... Ba6 {[%clk 0:04:16.1]} 18.
Bd2 {[%clk 0:01:52]} 18... Bxc4 {[%clk 0:04:13.4]} 19. bxc4 {[%clk 0:01:50.7]}
19... Nb4 {[%clk 0:04:12.2]} 20. Bxb4 {[%clk 0:01:45]} 20... axb4 {[%clk
0:04:10.2]} 21. a5 {[%clk 0:01:43.4]} 21... f5 {[%clk 0:04:09.1]} 22. Nf2 {[%clk
0:01:33.6]} 22... O-O-O+ {[%clk 0:04:07.9]} 23. Ke2 {[%clk 0:01:28.2]} 23... Kb7
{[%clk 0:04:06.6]} 24. Nd3 {[%clk 0:01:23.5]} 24... Ka6 {[%clk 0:04:02]} 25. c5
{[%clk 0:01:14.4]} 25... Rd4 {[%clk 0:03:58]} 26. Ke3 {[%clk 0:01:09]} 26...
Re4+ {[%clk 0:03:54.8]} 27. Kf3 {[%clk 0:01:04.7]} 27... Rd8 {[%clk 0:03:51.2]}
28. Ne5 {[%clk 0:00:59.4]} 28... Bxc5 {[%clk 0:03:45.7]} 29. Nxc6 {[%clk
0:00:57.2]} 29... Rd3# {[%clk 0:03:44.4]} 0-1

[Event "Live Chess"]
[Site "Chess.com"]
[Date "2023.05.21"]
[Round "-"]
[White "WilliamofOrange16th"]
[Black "Jo1ts"]
[Result "1-0"]
[WhiteElo "1845"]
[BlackElo "779"]
[TimeControl "300"]
[EndTime "16:02:27 PDT"]
[Termination "WilliamofOrange16th won by resignation"]

1. e4 {[%clk 0:04:55.5]} 1... d5 {[%clk 0:04:59.4]} 2. exd5 {[%clk 0:04:50.9]}
2... Qxd5 {[%clk 0:04:59.3]} 3. Nc3 {[%clk 0:04:49.8]} 3... Qd8 {[%clk
0:04:59.2]} 4. Nf3 {[%clk 0:04:49]} 4... Nf6 {[%clk 0:04:57.5]} 5. Bc4 {[%clk
0:04:47.3]} 5... Bg4 {[%clk 0:04:52]} 6. h3 {[%clk 0:04:45.6]} 6... Bh5 {[%clk
0:04:51.4]} 7. g4 {[%clk 0:04:44.6]} 7... Bg6 {[%clk 0:04:50.7]} 8. O-O {[%clk
0:04:43.7]} 8... Be4 {[%clk 0:04:43.6]} 9. Ng5 {[%clk 0:04:38.8]} 9... Bg6
{[%clk 0:04:38.8]} 10. d3 {[%clk 0:04:27.6]} 10... e5 {[%clk 0:04:33.5]} 11. Qe2
{[%clk 0:04:21.4]} 11... Nc6 {[%clk 0:04:29.2]} 12. Bb5 {[%clk 0:04:20.4]} 12...
Bd6 {[%clk 0:04:17.6]} 13. f4 {[%clk 0:04:08.9]} 13... Qe7 {[%clk 0:04:04.6]}
14. Bxc6+ {[%clk 0:04:01.9]} 14... bxc6 {[%clk 0:04:02.2]} 15. Re1 {[%clk
0:04:01.3]} 15... exf4 {[%clk 0:03:55.6]} 16. Qxe7+ {[%clk 0:03:59.7]} 16...
Bxe7 {[%clk 0:03:54.9]} 17. Bxf4 {[%clk 0:03:58.8]} 17... Rd8 {[%clk 0:03:38.1]}
18. Bxc7 {[%clk 0:03:50.4]} 18... Rd7 {[%clk 0:03:33.9]} 19. Bf4 {[%clk
0:03:46.2]} 19... O-O {[%clk 0:03:30.6]} 20. Nge4 {[%clk 0:03:44.6]} 20... Nxe4
{[%clk 0:03:27.2]} 21. Nxe4 {[%clk 0:03:44.5]} 21... Re8 {[%clk 0:03:18]} 22.
Kg2 {[%clk 0:03:15.5]} 22... Bh4 {[%clk 0:03:09.2]} 23. Re2 {[%clk 0:03:05.7]}
23... h6 {[%clk 0:03:02.6]} 24. Nf6+ {[%clk 0:03:01.5]} 24... gxf6 {[%clk
0:02:51.8]} 25. Rxe8+ {[%clk 0:03:00.9]} 25... Kg7 {[%clk 0:02:51.2]} 26. Bg3
{[%clk 0:02:58.6]} 26... Bg5 {[%clk 0:02:49.1]} 27. Rae1 {[%clk 0:02:56.4]}
27... Rd4 {[%clk 0:02:45.2]} 28. Ra8 {[%clk 0:02:42.4]} 28... Ra4 {[%clk
0:02:41.5]} 29. a3 {[%clk 0:02:41.2]} 29... Ra6 {[%clk 0:02:33.9]} 30. Kf3
{[%clk 0:02:38.9]} 30... Rb6 {[%clk 0:02:25.2]} 31. h4 {[%clk 0:02:37.7]} 31...
Bd2 {[%clk 0:02:20]} 32. Re2 {[%clk 0:02:36.8]} 32... Ba5 {[%clk 0:02:16.4]} 33.
b4 {[%clk 0:02:35.9]} 33... Bxb4 {[%clk 0:02:15.2]} 34. axb4 {[%clk 0:02:35.8]}
34... Rxb4 {[%clk 0:02:13.9]} 35. Rxa7 {[%clk 0:02:34.5]} 35... Rb2 {[%clk
0:02:08.9]} 36. h5 {[%clk 0:02:30.5]} 36... Bh7 {[%clk 0:02:01.8]} 37. Be1
{[%clk 0:02:29.2]} 37... f5 {[%clk 0:01:56]} 38. Bc3+ {[%clk 0:02:25.4]} 1-0